{"text_format":"1","workbook":"xlsx","n_sheets":4,"sheets":["Резервы ОПС","Типы регистраторов","Группы сумм","Расчет"],"not_rendered":{"charts":0,"images":0,"macros":1,"external_links":0,"defined_names":2,"comments":0,"pivot_tables":0},"unopened":[],"bounds":{"document_bytes":16777216,"sheet_cells":100000,"rows_first":2000,"rows_last":500,"rows_between":2000,"halvings":0,"cell_chars":16384,"cell_head_chars":4096},"cells_cut":0,"cells_raw":0,"read":"whole","date_system":"1900"}

{"sheet":"Резервы ОПС","index":0,"n_rows":2,"n_cols":16,"rows_kept":2,"cut":false,"hidden":false,"merged":[]}
["Вид движения","Период","Регистратор","Номер строки","Организация","Договор ОПС","Тип суммы","Вид резерва","Типы выплат (ОПС)","ОПС заявление","Сумма","Движение","Документ регистрации","Дата операции","Поступления","Выплаты"]
[null,null,null,null,null,null,null,null,null,null,null,null,null,null,{"$f":"IF(AND(K2<>0,H2=\"Взносы\"),IF(ISNA(LOOKUP(2,1/SEARCH('Типы регистраторов'!$A$2:$A$6,'Резервы ОПС'!C2))),0,MAX(O$1:O1)+1),0)*(IF(LEFT(C2,37)=\"Корректировка записей регистров (ОПС)\",(LEFT(C2,37)=\"Корректировка записей регистров (ОПС)\")*(A2=\"Приход\")*(K2>0),1))","v":0},{"$f":"IF(AND(K2<>0,H2=\"Взносы\"),IF(IFERROR(LOOKUP(2,1/SEARCH('Типы регистраторов'!$B$2:$B$8,'Резервы ОПС'!C2)),)*(I2<>\"Единовременная выплата\")=1,MAX(P$1:P1)+1,0),0)*(IF(LEFT(C2,37)=\"Корректировка записей регистров (ОПС)\",(LEFT(C2,37)=\"Корректировка записей регистров (ОПС)\")*IF(OR(A2=\"Расход\",K2<0),1,),1))","v":0}]

{"sheet":"Типы регистраторов","index":1,"n_rows":8,"n_cols":2,"rows_kept":8,"cut":false,"hidden":false,"merged":[]}
["Поступления","Выплаты"]
["Поступление взносов ОПС","Закрытие договора ОПС"]
["Распределение ИД ОПС","Перевод в резерв Фонда (ОПС)"]
["Компенсация(ОПС)","Решение о единовременной выплате (ОПС)"]
["Возврат выплаченных сумм (ОПС)","Назначение пенсии (ОПС)"]
["Корректировка записей регистров (ОПС)","Решение о выплате средств пенсионных накоплений"]
[null,"Начисление ОПС"]
[null,"Корректировка записей регистров (ОПС)"]

{"sheet":"Группы сумм","index":2,"n_rows":11,"n_cols":2,"rows_kept":11,"cut":false,"hidden":false,"merged":[]}
["Тип суммы","Группа"]
["Страховые взносы на НЧ","Страховые взносы на НЧ"]
["ИД на страховые взносы на НЧ","Страховые взносы на НЧ"]
["Доп. страховые взносы (ДСВ1)","Доп. страховые взносы (ДСВ1)"]
["ИД на доп. взносы (ИД ДСВ1)","Доп. страховые взносы (ДСВ1)"]
["Взносы работодателя (ДСВ2)","Взносы работодателя (ДСВ2)"]
["ИД на взносы работодателя (ИД ДСВ2)","Взносы работодателя (ДСВ2)"]
["Взносы софинансирование","Взносы софинансирование"]
["ИД на софинансирование","Взносы софинансирование"]
["Материнский капитал","Материнский капитал"]
["ИД на материнский капитал","Материнский капитал"]

{"sheet":"Расчет","index":3,"n_rows":2,"n_cols":21,"rows_kept":2,"cut":false,"hidden":false,"merged":[]}
[null,null,null,null,"Вид движения","Период","Регистратор","Договор ОПС","Группа сумм","Тип суммы","Вид резерва","Сумма","Регистратор","Регистратор_Дата","Группа сумм","Тип суммы","Сумма","Сумма партии","Переплата","Сумма партии","Переплата"]
[{"$f":"IF(T2<>0,MAX(A$1:A1)+1,\"\")","v":""},{"$f":"IF(B1+1>MAX('Резервы ОПС'!$O$2:$O$255),1,B1+1)","v":1},{"$f":"IF(B2=1,C1+1,C1)","v":1},{"$f":"IF(LARGE(IF(($C$2:$C$10=C2)*($O$2:$O$10=O2)*($F$2:$F$10>=$N$2:$N$10)*($Q$2:$Q$10>0),$B$2:$B$10),1)=B2,1,)","v":{"$error":"#N/A"}},{"$f":"INDEX('Резервы ОПС'!A$2:A$255,MATCH($C2,'Резервы ОПС'!$P$2:$P$255,0))","v":{"$error":"#N/A"}},{"$f":"IFERROR(VALUE(INDEX('Резервы ОПС'!B$2:B$255,MATCH($C2,'Резервы ОПС'!$P$2:$P$255,0))),\"\")","v":""},{"$f":"INDEX('Резервы ОПС'!C$2:C$255,MATCH($C2,'Резервы ОПС'!$P$2:$P$255,0))","v":{"$error":"#N/A"}},{"$f":"INDEX('Резервы ОПС'!F$2:F$255,MATCH($C2,'Резервы ОПС'!$P$2:$P$255,0))","v":{"$error":"#N/A"}},{"$f":"VLOOKUP(INDEX('Резервы ОПС'!G$2:G$255,MATCH($C2,'Резервы ОПС'!$P$2:$P$255,0)),'Группы сумм'!$A$2:$B$11,2,FALSE)","v":{"$error":"#N/A"}},{"$f":"INDEX('Резервы ОПС'!G$2:G$255,MATCH($C2,'Резервы ОПС'!$P$2:$P$255,0))","v":{"$error":"#N/A"}},{"$f":"INDEX('Резервы ОПС'!H$2:H$255,MATCH($C2,'Резервы ОПС'!$P$2:$P$255,0))","v":{"$error":"#N/A"}},{"$f":"IF(AND(E2=\"Приход\",LEFT(G2,37)=\"Корректировка записей регистров (ОПС)\"),INDEX('Резервы ОПС'!K$2:K$255,MATCH($C2,'Резервы ОПС'!$P$2:$P$255,0))*(-1),INDEX('Резервы ОПС'!K$2:K$255,MATCH($C2,'Резервы ОПС'!$P$2:$P$255,0)))","v":{"$error":"#N/A"}},{"$f":"INDEX('Резервы ОПС'!$C$2:$C$255,MATCH(B2,'Резервы ОПС'!$O$2:$O$255,0))","v":{"$error":"#N/A"}},{"$f":"VALUE(INDEX('Резервы ОПС'!$B$2:$B$255,MATCH(M2,'Резервы ОПС'!$C$2:$C$255,0)))","v":{"$error":"#N/A"}},{"$f":"VLOOKUP(INDEX('Резервы ОПС'!$G$2:$G$255,MATCH(B2,'Резервы ОПС'!$O$2:$O$255,0)),'Группы сумм'!$A$2:$B$11,2,FALSE)","v":{"$error":"#N/A"}},{"$f":"INDEX('Резервы ОПС'!$G$2:$G$255,MATCH(B2,'Резервы ОПС'!$O$2:$O$255,0))","v":{"$error":"#N/A"}},{"$f":"INDEX('Резервы ОПС'!$K$2:$K$255,MATCH(B2,'Резервы ОПС'!$O$2:$O$255,0))","v":{"$error":"#N/A"}},{"$f":"ROUND(IF(AND(Q2-SUMIFS(R$1:R1,M$1:M1,M2,O$1:O1,O2)>0,L2-SUMIFS(R$1:R1,C$1:C1,C2,O$1:O1,I2)>0,O2=I2,F2>=N2),IF(D2<>1,MIN(Q2-SUMIFS(R$1:R1,M$1:M1,M2,O$1:O1,O2),L2-SUMIFS(R$1:R1,C$1:C1,C2,O$1:O1,I2)+(-1)*(MAX(MIN(0,SUMIFS($L$2:$L$10,$C$2:$C$10,C2,$I$2:$I$10,I2)-SUMIFS($Q$2:$Q$10,$C$2:$C$10,1,$O$2:$O$10,I2,$N$2:$N$10,\"<=\"&F2)+SUMIFS(R$1:R1,C$1:C1,\"<\"&C2,O$1:O1,I2)),SUMIFS($Q$2:$Q$10,$C$2:$C$10,1,$O$2:$O$10,O2,$Q$2:$Q$10,\"<\"&0)-SUMIFS(R$1:R1,C$1:C1,\"<\"&C2,O$1:O1,O2,R$1:R1,\"<\"&0)+SUMIFS(S$1:S1,C$1:C1,\"<\"&C2,O$1:O1,O2)))),L2-SUMIFS(R$1:R1,C$1:C1,C2,O$1:O1,I2)),)+IF(AND(Q2-SUMIFS(R$1:R1,M$1:M1,M2,O$1:O1,O2)<0,L2-SUMIFS(R$1:R1,C$1:C1,C2,O$1:O1,I2)>0,O2=I2,F2>=N2),MAX(MIN(0,SUMIFS($L$2:$L$10,$C$2:$C$10,C2,$I$2:$I$10,I2)-SUMIFS($Q$2:$Q$10,$C$2:$C$10,1,$O$2:$O$10,I2,$N$2:$N$10,\"<=\"&F2)+SUMIFS(R$1:R1,O$1:O1,I2)),Q2-SUMIFS(R$1:R1,M$1:M1,M2,O$1:O1,O2)),)+IF(AND(Q2-SUMIFS(R$1:R1,M$1:M1,M2,O$1:O1,O2)<0,L2-SUMIFS(R$1:R1,C$1:C1,C2,O$1:O1,I2)<0,O2=I2,F2>=N2),MAX(Q2-SUMIFS(R$1:R1,M$1:M1,M2,O$1:O1,O2),L2-SUMIFS(R$1:R1,C$1:C1,C2,O$1:O1,I2)),),2)","v":{"$error":"#N/A"}},{"$f":"ROUND(IF(AND(Q2>0,Q2-SUMIFS($R$2:R2,$M$2:M2,M2,$O$2:O2,O2)<0),Q2-SUMIFS($R$2:R2,$M$2:M2,M2,$O$2:O2,O2),),2)","v":{"$error":"#N/A"}}]